fUST/lending_fUST_20240712
["ID","MTS","AMOUNT","RATE_DAILY","PERIOD"]
[331828421,1720773499147,-187.134815,0.000255,7]
[331828422,1720773499171,-151.0,0.000255,7]
[331828423,1720773499195,-187.134815,0.000255,7]
[331828424,1720773499219,-154.579089,0.000255,7]
[331828425,1720773499243,-151.0,0.000255,7]
[331828426,1720773499267,-153.288607,0.000255,7]
[331828427,1720773499291,-153.288607,0.000255,7]
[331828428,1720773499315,-234.496811,0.000255,7]
[331828429,1720773499340,-234.496811,0.000255,7]
[331828430,1720773499364,-715.59148,0.000255,7]
[331828431,1720773499389,-715.59148,0.000255,7]
[331828432,1720773499412,-1070.834917,0.000255,7]
[331828433,1720773499439,-1070.834917,0.000255,7]
[331828434,1720773499463,-151.0,0.000255,7]
[331828435,1720773499487,-151.0,0.000255,7]
[331828436,1720773499514,-651.965813,0.000255,7]
[331828437,1720773499539,-651.965813,0.000255,7]
[331828438,1720773499563,-565.223901,0.000255,7]
[331828439,1720773499586,-565.223901,0.000255,7]
[331828440,1720773499611,-151.0,0.000255,7]
[331828441,1720773499635,-151.0,0.000255,7]
[331828442,1720773499659,-151.0,0.000255,7]
[331828443,1720773499684,-1160.94495,0.000255,7]
[331828444,1720773499708,-151.0,0.000255,7]
[331828445,1720773499733,-1160.94495,0.000255,7]
[331828446,1720773499839,-151.0,0.000255,7]
[331828447,1720773499864,-1190.515965,0.000255,7]
[331828448,1720773499888,-1190.515965,0.000255,7]
[331828449,1720773499912,-752.18904,0.000255,7]
[331828450,1720773499936,-752.18904,0.000255,7]
[331828451,1720773499960,-1538.150647,0.000255,7]
[331828452,1720773499987,-1538.150647,0.000255,7]
[331828453,1720773500010,-667.310438,0.000255,7]
[331828454,1720773500034,-667.310438,0.000255,7]
[331828455,1720773500059,-151.0,0.00025501,7]
[331828456,1720773500082,-187.134815,0.00025501,7]
[331828457,1720773500106,-151.0,0.00025501,7]
[331828458,1720773500129,-187.134815,0.00025501,7]
[331828459,1720773500153,-151.0,0.00025501,7]
[331828460,1720773500177,-153.288607,0.00025501,7]
[331828461,1720773500201,-153.288607,0.00025501,7]
[331828462,1720773500224,-234.496811,0.00025501,7]
[331828463,1720773500249,-234.496811,0.00025501,7]
[331828464,1720773500274,-199.44572,0.00025501,7]
[331828465,1720773500297,-199.44572,0.00025501,7]
[331828466,1720773500320,-715.59148,0.00025501,7]
[331828467,1720773500344,-715.59148,0.00025501,7]
[331828468,1720773500367,-1070.834917,0.00025501,7]
[331828469,1720773500391,-1070.834917,0.00025501,7]
[331828470,1720773500414,-151.0,0.00025501,7]
[331828471,1720773500439,-151.0,0.00025501,7]
[331828472,1720773500463,-651.965813,0.00025501,7]
[331828473,1720773500489,-651.965813,0.00025501,7]
[331828474,1720773500513,-565.223901,0.00025501,7]
[331828475,1720773500538,-565.223901,0.00025501,7]
[331828476,1720773500562,-161.116961,0.00025501,7]
[331828477,1720773500585,-151.0,0.00025501,7]
[331828478,1720773500610,-151.0,0.00025501,7]
[331828479,1720773500634,-1160.94495,0.00025501,7]
[331828480,1720773500658,-151.0,0.00025501,7]
[331828481,1720773500682,-1160.94495,0.00025501,7]
[331828482,1720773500706,-151.0,0.00025501,7]
[331828483,1720773500731,-1190.515965,0.00025501,7]
[331828484,1720773500756,-1190.515965,0.00025501,7]
[331828485,1720773500780,-752.18904,0.00025501,7]
[331828486,1720773500803,-752.18904,0.00025501,7]
[331828487,1720773500827,-1538.150647,0.00025501,7]
[331828488,1720773500851,-1538.150647,0.00025501,7]
[331828489,1720773500875,-667.310438,0.00025501,7]
[331828490,1720773500899,-667.310438,0.00025501,7]
[331828491,1720773500924,-1000.0,0.00026,26]
[331828492,1720773500949,-158.167329,0.0002658,7]
[331828493,1720773500974,-187.134815,0.0002658,7]
[331828494,1720773500999,-208.410464,0.0002658,7]
[331828495,1720773501024,-187.134815,0.0002658,7]
[331828496,1720773501119,-151.0,0.0002658,7]
[331828497,1720773501143,-153.288607,0.0002658,7]
[331828498,1720773501167,-153.288607,0.0002658,7]
[331828499,1720773501191,-234.496811,0.0002658,7]
[331828500,1720773501214,-234.496811,0.0002658,7]
[331828501,1720773501238,-199.44572,0.0002659,7]
[331828502,1720773501261,-199.44572,0.0002659,7]
[331828503,1720773501285,-715.59148,0.0002659,7]
[331828504,1720773501309,-715.59148,0.0002659,7]
[331828505,1720773501333,-1070.834917,0.0002659,7]
[331828506,1720773501358,-1070.834917,0.0002659,7]
[331828507,1720773501383,-172.762044,0.0002659,7]
[331828508,1720773501407,-228.320648,0.0002659,7]
[331828509,1720773501436,-651.965813,0.0002659,7]
[331828510,1720773501461,-651.965813,0.0002659,7]
[331828511,1720773501486,-565.223901,0.0002659,7]
[331828512,1720773501513,-565.223901,0.0002659,7]
[331828513,1720773501537,-151.0,0.0002659,7]
[331828514,1720773501560,-151.0,0.0002659,7]
[331828515,1720773501584,-1160.94495,0.0002659,7]
[331828516,1720773501609,-151.0,0.0002659,7]
[331828517,1720773501633,-1160.94495,0.0002659,7]
[331828518,1720773501657,-151.0,0.0002659,7]
[331828519,1720773501681,-1190.515965,0.0002659,7]
[331828520,1720773501705,-1190.515965,0.0002659,7]
[331828521,1720773501730,-752.18904,0.0002659,7]
[331828522,1720773501754,-752.18904,0.0002659,7]
[331828523,1720773501781,-1538.150647,0.0002659,7]
[331828524,1720773501806,-1538.150647,0.0002659,7]
[331828525,1720773501831,-667.310438,0.0002659,7]
[331828526,1720773501856,-667.310438,0.0002659,7]
[331828527,1720773501881,-500.0,0.00026638,7]
[331828528,1720773501905,-187.134815,0.0002672,7]
[331828529,1720773501930,-187.134815,0.0002672,7]
[331828530,1720773501954,-151.0,0.0002672,7]
[331828531,1720773501979,-153.288607,0.0002672,7]
[331828532,1720773502004,-153.288607,0.0002672,7]
[331828533,1720773502028,-234.496811,0.0002672,7]
[331828534,1720773502053,-234.496811,0.0002672,7]
[331828535,1720773502078,-199.44572,0.0002673,7]
[331828536,1720773502104,-199.44572,0.0002673,7]
[331828537,1720773502129,-715.59148,0.0002673,7]
[331828538,1720773502154,-715.59148,0.0002673,7]
[331828539,1720773502181,-1070.834917,0.0002673,7]
[331828540,1720773502207,-1070.834917,0.0002673,7]
[331828541,1720773502233,-651.965813,0.0002673,7]
[331828542,1720773502258,-651.965813,0.0002673,7]
[331828543,1720773502281,-565.223901,0.0002673,7]
[331828544,1720773502404,-565.223901,0.0002673,7]
[331828545,1720773502433,-151.0,0.0002673,7]
[331828546,1720773502461,-151.0,0.0002673,7]
[331828547,1720773502488,-1160.94495,0.0002673,7]
[331828548,1720773502517,-151.0,0.0002673,7]
[331828549,1720773502544,-1160.94495,0.0002673,7]
[331828550,1720773502569,-151.0,0.0002673,7]
[331828551,1720773502594,-1190.515965,0.0002673,7]
[331828552,1720773502624,-1190.515965,0.0002673,7]
[331828553,1720773502649,-752.18904,0.0002673,7]
[331828554,1720773502674,-752.18904,0.0002673,7]
[331828555,1720773502698,-1538.150647,0.0002674,7]
[331828556,1720773502723,-1538.150647,0.0002674,7]
[331828557,1720773502750,-667.310438,0.0002674,7]
[331828558,1720773502774,-667.310438,0.0002674,7]
[331828559,1720773502799,-187.134815,0.0002683,7]
[331828560,1720773502822,-187.134815,0.0002683,7]
[331828561,1720773502846,-151.0,0.0002683,7]
[331828562,1720773502871,-153.288607,0.0002683,7]
[331828563,1720773502895,-153.288607,0.0002683,7]
[331828564,1720773502919,-234.496811,0.0002683,7]
[331828565,1720773502943,-234.496811,0.0002683,7]
[331828566,1720773502967,-151.0,0.00026849,7]
[331828567,1720773502992,-151.0,0.00026849,7]
[331828568,1720773503017,-151.0,0.00026849,7]
[331828569,1720773503042,-151.0,0.00026849,7]
[331828570,1720773503066,-151.0,0.00026849,7]
[331828571,1720773503089,-151.0,0.00026849,7]
[331828572,1720773503113,-285.44584,0.00026849,7]
[331828573,1720773503138,-199.44572,0.0002688,7]
[331828574,1720773503162,-199.44572,0.0002688,7]
[331828575,1720773503186,-715.59148,0.0002688,7]
[331828576,1720773503209,-715.59148,0.0002688,7]
[331828577,1720773503233,-1070.834917,0.0002688,7]
[331828578,1720773503257,-1070.834917,0.0002688,7]
[331828579,1720773503281,-651.965813,0.0002688,7]
[331828580,1720773503306,-651.965813,0.0002688,7]
[331828581,1720773503329,-565.223901,0.0002688,7]
[331828582,1720773503354,-565.223901,0.0002688,7]
[331828583,1720773503378,-151.0,0.0002688,7]
[331828584,1720773503402,-151.0,0.0002688,7]
[331828585,1720773503428,-1160.94495,0.0002688,7]
[331828586,1720773503457,-151.0,0.0002688,7]
[331828587,1720773503482,-1160.94495,0.0002688,7]
[331828588,1720773503507,-151.0,0.0002688,7]
[331828589,1720773503535,-1190.515965,0.0002688,7]
[331828590,1720773503631,-1190.515965,0.0002688,7]
[331828591,1720773503657,-752.18904,0.0002688,7]
[331828592,1720773503681,-752.18904,0.0002688,7]
[331828593,1720773503705,-1538.150647,0.0002689,7]
[331828594,1720773503730,-1538.150647,0.0002689,7]
[331828595,1720773503758,-667.310438,0.0002689,7]
[331828596,1720773503782,-667.310438,0.0002689,7]
[331828597,1720773503806,-1000.0,0.00027,27]
[331828598,1720773503830,-886.09134707,0.00027,15]
[331828599,1720773503855,-538.49030928,0.00027397,3]
[331828600,1720773503880,-500.0,0.00027397,7]
[331828601,1720773503904,-500.0,0.00027397,7]
[331828602,1720773503928,-514.87731232,0.00027397,7]
[331828603,1720773503953,-500.0,0.00027397,7]
[331828604,1720773503978,-500.0,0.00027397,7]
[331828605,1720773504002,-500.0,0.00027397,7]
[331828606,1720773504028,-500.0,0.00027397,7]
[331828607,1720773504054,-500.0,0.00027397,7]
[331828608,1720773504078,-500.0,0.00027397,7]
[331828609,1720773504104,-513.65640581,0.00027397,7]
[331828610,1720773504129,-500.0,0.00027397,7]
[331828611,1720773504155,-500.0,0.00027397,7]
[331828612,1720773504179,-500.0,0.00027397,7]
[331828613,1720773504203,-512.54938635,0.00027397,7]
[331828614,1720773504228,-500.0,0.00027397,7]
[331828615,1720773504253,-500.0,0.00027397,7]
[331828616,1720773504277,-500.0,0.00027397,7]
[331828617,1720773504304,-500.0,0.00027397,7]
[331828618,1720773504329,-646.11565895,0.00027397,7]
[331828619,1720773504353,-500.0,0.00027397,7]
[331828620,1720773504377,-392.34555722,0.00027397,7]
[331828621,1720773504401,-500.0,0.00027397,7]
[331828622,1720773504427,-500.0,0.00027397,7]
[331828623,1720773504455,-500.0,0.00027397,7]
[331828624,1720773504481,-500.0,0.00027397,7]
[331828625,1720773504505,-500.0,0.00027397,7]
[331828626,1720773504532,-550.30909354,0.00027397,7]
[331828627,1720773504558,-500.0,0.00027397,7]
[331828628,1720773504584,-500.0,0.00027397,7]
[331828629,1720773504609,-500.0,0.00027397,7]
[331828630,1720773504635,-512.70212622,0.00027397,7]
[331828631,1720773504661,-500.0,0.00027397,7]
[331828632,1720773504687,-500.0,0.00027397,7]
[331828633,1720773504712,-503.90013431,0.00027397,7]
[331828634,1720773504737,-500.0,0.00027397,7]
[331828635,1720773504763,-500.0,0.00027397,7]
[331828636,1720773504857,-502.42618053,0.00027397,7]
[331828637,1720773504883,-505.24736795,0.00027397,7]
[331828638,1720773504909,-500.0,0.00027397,7]
[331828639,1720773504937,-511.03488476,0.00027397,7]
[331828640,1720773504965,-500.0,0.00027397,7]
[331828641,1720773504994,-500.0,0.00027397,7]
[331828642,1720773505021,-500.0,0.00027397,7]
[331828643,1720773505046,-500.0,0.00027397,7]
[331828644,1720773505072,-500.0,0.00027397,7]
[331828645,1720773505099,-500.0,0.00027397,7]
[331828646,1720773505126,-500.0,0.00027397,7]
[331828647,1720773505153,-500.0,0.00027397,7]
[331828648,1720773505179,-500.0,0.00027397,7]
[331828649,1720773505206,-500.0,0.00027397,7]
[331828650,1720773505232,-500.0,0.00027397,7]
[331828651,1720773505257,-500.0,0.00027397,7]
[331828652,1720773505284,-502.5176513,0.00027397,7]
[331828653,1720773505311,-567.14236006,0.00027397,7]
[331828654,1720773505337,-500.0,0.00027397,7]
[331828655,1720773505362,-500.0,0.00027397,7]
[331828656,1720773505387,-503.55180636,0.00027397,7]
[331828657,1720773505411,-500.0,0.00027397,7]
[331828658,1720773505438,-500.0,0.00027397,7]
[331828659,1720773505463,-502.57636919,0.00027397,7]
[331828660,1720773505493,-500.0,0.00027397,7]
[331828661,1720773505519,-500.0,0.00027397,7]
[331828662,1720773505544,-500.0,0.00027397,7]
[331828663,1720773505568,-500.0,0.00027397,7]
[331828664,1720773505593,-500.0,0.00027397,7]
[331828665,1720773505617,-500.0,0.00027397,7]
[331828666,1720773505642,-500.0,0.00027397,7]
[331828667,1720773505666,-505.86034321,0.00027397,7]
[331828668,1720773505690,-505.30715868,0.00027397,7]
[331828669,1720773505715,-526.9019982,0.00027397,7]
[331828670,1720773505739,-500.0,0.00027397,7]
[331828671,1720773505764,-500.0,0.00027397,7]
[331828672,1720773505789,-500.0,0.00027397,7]
[331828673,1720773505814,-500.0,0.00027397,7]
[331828674,1720773505838,-506.22340016,0.00027397,7]
[331828675,1720773505862,-504.91767135,0.00027397,7]
[331828676,1720773505886,-505.98635886,0.00027397,7]
[331828677,1720773505911,-500.0,0.00027397,7]
[331828678,1720773505935,-500.0,0.00027397,7]
[331828679,1720773506047,-500.0,0.00027397,7]
[331828680,1720773506073,-506.58955093,0.00027397,7]
[331828681,1720773506097,-508.24720403,0.00027397,7]
[331828682,1720773506122,-500.0,0.00027397,7]
[331828683,1720773506147,-500.0,0.00027397,7]
[331828684,1720773506171,-500.0,0.00027397,7]
[331828685,1720773506196,-500.0,0.00027397,7]
[331828686,1720773506220,-500.0,0.00027397,4]
[331828687,1720773506245,-621.11346786,0.00027397,7]
[331828688,1720773506270,-500.0,0.00027397,7]
[331828689,1720773506294,-500.0,0.00027397,7]
[331828690,1720773506319,-500.0,0.00027397,7]
[331828691,1720773506344,-500.0,0.00027397,7]
[331828692,1720773506368,-500.0,0.00027397,7]
[331828693,1720773506395,-500.0,0.00027397,7]
[331828694,1720773506420,-500.0,0.00027397,7]
[331828695,1720773506446,-500.0,0.00027397,7]
[331828696,1720773506470,-524.47944984,0.00027397,7]
[331828697,1720773506496,-507.288803,0.00027397,7]
[331828698,1720773506522,-500.0,0.00027397,7]
[331828699,1720773506547,-500.0,0.00027397,7]
[331828700,1720773506571,-500.0,0.00027397,7]
[331828701,1720773506595,-500.0,0.00027397,7]
[331828702,1720773506620,-500.0,0.00027397,7]
[331828703,1720773506644,-500.0,0.00027397,7]
[331828704,1720773506667,-500.0,0.00027397,7]
[331828705,1720773506692,-500.0,0.00027397,7]
[331828706,1720773506716,-500.0,0.00027397,7]
[331828707,1720773506740,-500.0,0.00027397,7]
[331828708,1720773506765,-189.28267124,0.00027397,7]
[331828709,1720773506789,-505.725413,0.00027397,7]
[331828710,1720773506814,-506.43089137,0.00027397,7]
[331828711,1720773506840,-500.0,0.00027397,7]
[331828712,1720773506863,-509.01283565,0.00027397,7]
[331828713,1720773506887,-512.03474935,0.00027397,7]
[331828714,1720773506911,-187.134815,0.00027397,7]
[331828715,1720773506936,-187.134815,0.00027397,7]
[331828716,1720773506961,-500.0,0.00027397,7]
[331828717,1720773506986,-187.134815,0.00027397,7]
[331828718,1720773507015,-500.0,0.00027397,7]
[331828719,1720773507043,-500.0,0.00027397,7]
[331828720,1720773507071,-187.134807,0.00027397,7]
[331828721,1720773507097,-500.0,0.00027397,7]
[331828722,1720773507201,-500.0,0.00027397,7]
[331828723,1720773507228,-503.50488979,0.00027397,7]
[331828724,1720773507257,-500.0,0.00027397,7]
[331828725,1720773507283,-500.0,0.00027397,7]
[331828726,1720773507308,-500.0,0.00027397,7]
[331828727,1720773507335,-500.0,0.00027397,7]
[331828728,1720773507360,-500.0,0.00027397,7]
[331828729,1720773507384,-500.0,0.00027397,7]
[331828730,1720773507409,-500.0,0.00027397,7]
[331828731,1720773507434,-500.0,0.00027397,7]
[331828732,1720773507459,-500.0,0.00027397,7]
[331828733,1720773507484,-500.0,0.00027397,7]
[331828734,1720773507514,-500.0,0.00027397,7]
[331828735,1720773507540,-500.0,0.00027397,7]
[331828736,1720773507564,-500.0,0.00027397,7]
[331828737,1720773507590,-620.95576793,0.00027397,7]
[331828738,1720773507616,-500.0,0.00027397,7]
[331828739,1720773507641,-151.0,0.00027397,7]
[331828740,1720773507666,-500.0,0.00027397,7]
[331828741,1720773507691,-153.288607,0.00027397,7]
[331828742,1720773507717,-153.288615,0.00027397,7]
[331828743,1720773507742,-500.0,0.00027397,7]
[331828744,1720773507767,-234.496811,0.00027397,7]
[331828745,1720773507793,-234.496805,0.00027397,7]
[331828746,1720773507818,-515.83,0.00027397,7]
[331828747,1720773507843,-500.0,0.00027397,7]
[331828748,1720773507868,-639.74,0.00027397,7]
[331828749,1720773507894,-500.0,0.00027397,7]
[331828750,1720773507919,-500.0,0.00027397,7]
[331828751,1720773507945,-500.0,0.00027397,7]
[331828752,1720773507971,-500.0,0.00027397,7]
[331828753,1720773507997,-546.75940228,0.00027397,7]
[331828754,1720773508023,-500.0,0.00027397,7]
[331828755,1720773508050,-500.0,0.00027397,7]
[331828756,1720773508078,-500.0,0.00027397,7]
[331828757,1720773508104,-500.0,0.00027397,7]
[331828758,1720773508128,-507.16465406,0.00027397,7]
[331828759,1720773508154,-515.04683079,0.00027397,7]
[331828760,1720773508180,-503.29460758,0.00027397,7]
[331828761,1720773508207,-500.0,0.00027397,7]
[331828762,1720773508294,-500.0,0.00027397,7]
[331828763,1720773508319,-500.0,0.00027397,7]
[331828764,1720773508343,-509.88295238,0.00027397,7]
[331828765,1720773508367,-500.0,0.00027397,7]
[331828766,1720773508391,-511.73348441,0.00027397,7]
[331828767,1720773508415,-500.0,0.00027397,7]
[331828768,1720773508441,-500.0,0.00027397,7]
[331828769,1720773508464,-500.0,0.00027397,7]
[331828770,1720773508490,-500.0,0.00027397,7]
[331828771,1720773508514,-500.0,0.00027397,7]
[331828772,1720773508539,-500.0,0.00027397,7]
[331828773,1720773508563,-500.0,0.00027397,7]
[331828774,1720773508587,-505.9890948,0.00027397,7]
[331828775,1720773508613,-500.0,0.00027397,7]
[331828776,1720773508636,-500.0,0.00027397,7]
[331828777,1720773508660,-500.0,0.00027397,7]
[331828778,1720773508683,-507.03625659,0.00027397,7]
[331828779,1720773508707,-500.0,0.00027397,7]
[331828780,1720773508731,-500.0,0.00027397,7]
[331828781,1720773508755,-500.0,0.00027397,7]
[331828782,1720773508779,-500.0,0.00027397,7]
[331828783,1720773508803,-500.0,0.00027397,7]
[331828784,1720773508828,-500.0,0.00027397,7]
[331828785,1720773508853,-500.0,0.00027397,7]
[331828786,1720773508877,-500.0,0.00027397,7]
[331828787,1720773508903,-500.0,0.00027397,7]
[331828788,1720773508927,-528.40863055,0.00027397,7]
[331828789,1720773508951,-500.0,0.00027397,7]
[331828790,1720773508974,-508.59280671,0.00027397,7]
[331828791,1720773508998,-500.0,0.00027397,7]
[331828792,1720773509022,-500.0,0.00027397,7]
[331828793,1720773509045,-500.0,0.00027397,7]
[331828794,1720773509070,-500.0,0.00027397,7]
[331828795,1720773509097,-500.0,0.00027397,7]
[331828796,1720773509120,-500.0,0.00027397,7]
[331828797,1720773509145,-500.0,0.00027397,7]
[331828798,1720773509168,-502.87363174,0.00027397,7]
[331828799,1720773509193,-500.0,0.00027397,7]
[331828800,1720773509217,-500.0,0.00027397,7]
[331828801,1720773509242,-500.0,0.00027397,7]
[331828802,1720773509326,-503.48218098,0.00027397,7]
[331828803,1720773509350,-519.86769416,0.00027397,7]
[331828804,1720773509374,-601.96461021,0.00027397,7]
[331828805,1720773509397,-500.0,0.00027397,7]
[331828806,1720773509422,-500.0,0.00027397,7]
[331828807,1720773509449,-500.0,0.00027397,7]
[331828808,1720773509472,-500.0,0.00027397,7]
[331828809,1720773509499,-500.0,0.00027397,7]
[331828810,1720773509525,-503.49317924,0.00027397,7]
[331828811,1720773509549,-500.0,0.00027397,7]
[331828812,1720773509573,-500.0,0.00027397,7]
[331828813,1720773509596,-536.48147555,0.00027397,7]
[331828814,1720773509620,-500.0,0.00027397,7]
[331828815,1720773509644,-500.0,0.00027397,7]
[331828816,1720773509668,-582.91,0.00027397,7]
[331828817,1720773509692,-500.0,0.00027397,7]
[331828818,1720773509718,-500.0,0.00027397,7]
[331828819,1720773509744,-500.0,0.00027397,7]
[331828820,1720773509767,-505.3015009,0.00027397,7]
[331828821,1720773509791,-500.0,0.00027397,7]
[331828822,1720773509815,-500.0,0.00027397,7]
[331828823,1720773509839,-500.0,0.00027397,7]
[331828824,1720773509862,-530.99886671,0.00027397,7]
[331828825,1720773509888,-500.0,0.00027397,7]
[331828826,1720773509912,-500.0,0.00027397,7]
[331828827,1720773509936,-199.44572,0.00027397,7]
[331828828,1720773509960,-514.98189856,0.00027397,7]
[331828829,1720773509985,-552.00324419,0.00027397,7]
[331828830,1720773510009,-199.44572,0.00027397,7]
[331828831,1720773510032,-199.44572,0.00027397,7]
[331828832,1720773510056,-199.44572,0.00027397,7]
[331828833,1720773510080,-199.44572,0.00027397,7]
[331828834,1720773510104,-513.79628168,0.00027397,7]
[331828835,1720773510128,-199.44572,0.00027397,7]
[331828836,1720773510151,-500.0,0.00027397,7]
[331828837,1720773510174,-503.6181539,0.00027397,7]
[331828838,1720773510198,-522.53197781,0.00027397,7]
[331828839,1720773510222,-199.44572,0.00027397,7]
[331828840,1720773510325,-199.44572,0.00027397,7]
[331828841,1720773510350,-199.44572,0.00027397,7]
[331828842,1720773510375,-503.7600386,0.00027397,7]
[331828843,1720773510399,-532.11882385,0.00027397,7]
[331828844,1720773510424,-199.44572,0.00027397,7]
[331828845,1720773510454,-199.44572,0.00027397,7]
[331828846,1720773510480,-199.445713,0.00027397,7]
[331828847,1720773510512,-500.0,0.00027397,7]
[331828848,1720773510540,-500.0,0.00027397,7]
[331828849,1720773510565,-500.0,0.00027397,7]
[331828850,1720773510589,-500.0,0.00027397,7]
[331828851,1720773510615,-593.83948502,0.00027397,7]
[331828852,1720773510640,-633.06553012,0.00027397,7]
[331828853,1720773510665,-500.0,0.00027397,7]
[331828854,1720773510690,-500.0,0.00027397,7]
[331828855,1720773510717,-506.09209885,0.00027397,7]
[331828856,1720773510745,-500.0,0.00027397,7]
[331828857,1720773510770,-500.0,0.00027397,7]
[331828858,1720773510796,-510.02316565,0.00027397,7]
[331828859,1720773510820,-500.0,0.00027397,7]
[331828860,1720773510845,-504.74508989,0.00027397,7]
[331828861,1720773510870,-510.34269952,0.00027397,7]
[331828862,1720773510894,-500.0,0.00027397,15]
[331828863,1720773510920,-500.0,0.00027397,7]
[331828864,1720773510945,-500.0,0.00027397,7]
[331828865,1720773510971,-500.0,0.00027397,7]
[331828866,1720773510998,-500.0,0.00027397,7]
[331828867,1720773511022,-501.73371771,0.00027397,7]
[331828868,1720773511046,-500.0,0.00027397,7]
[331828869,1720773511071,-508.60313527,0.00027397,7]
[331828870,1720773511096,-500.0,0.00027397,7]
[331828871,1720773511122,-502.54515035,0.00027397,7]
[331828872,1720773511147,-500.0,0.00027397,7]
[331828873,1720773511172,-500.0,0.00027397,7]
[331828874,1720773511197,-500.0,0.00027397,7]
[331828875,1720773511221,-500.0,0.00027397,7]
[331828876,1720773511249,-500.0,0.00027397,7]
[331828877,1720773511351,-500.0,0.00027397,7]
[331828878,1720773511376,-500.0,0.00027397,7]
[331828879,1720773511402,-504.63921979,0.00027397,7]
[331828880,1720773511426,-500.0,0.00027397,7]
[331828881,1720773511455,-500.0,0.00027397,7]
[331828882,1720773511480,-500.0,0.00027397,7]
[331828883,1720773511506,-500.0,0.00027397,7]
[331828884,1720773511531,-633.60397759,0.00027397,7]
[331828885,1720773511555,-500.0,0.00027397,7]
[331828886,1720773511579,-500.0,0.00027397,7]
[331828887,1720773511603,-500.0,0.00027397,7]
[331828888,1720773511626,-500.0,0.00027397,7]
[331828889,1720773511650,-500.0,0.00027397,7]
[331828890,1720773511675,-500.0,0.00027397,7]
[331828891,1720773511698,-500.0,0.00027397,7]
[331828892,1720773511722,-500.0,0.00027397,7]
[331828893,1720773511746,-503.94201503,0.00027397,7]
[331828894,1720773511769,-500.0,0.00027397,7]
[331828895,1720773511793,-500.0,0.00027397,7]
[331828896,1720773511817,-500.0,0.00027397,7]
[331828897,1720773511842,-502.87580366,0.00027397,7]
[331828898,1720773511865,-511.55034959,0.00027397,7]
[331828899,1720773511888,-503.90421618,0.00027397,7]
[331828900,1720773511912,-504.83813468,0.00027397,7]
[331828901,1720773511936,-500.0,0.00027397,7]
[331828902,1720773511960,-500.0,0.00027397,7]
[331828903,1720773511983,-506.53996161,0.00027397,7]
[331828904,1720773512008,-500.0,0.00027397,7]
[331828905,1720773512032,-500.0,0.00027397,7]
[331828906,1720773512056,-334.08132421,0.00027397,7]
[331828907,1720773512083,-500.0,0.00027397,7]
[331828908,1720773512107,-500.0,0.00027397,7]
[331828909,1720773512130,-500.0,0.00027397,7]
[331828910,1720773512153,-500.0,0.00027397,7]
[331828911,1720773512177,-200.0,0.00027397,7]
[331828912,1720773512268,-500.0,0.00027397,7]
[331828913,1720773512293,-500.0,0.00027397,7]
[331828914,1720773512320,-500.0,0.00027397,7]
[331828915,1720773512344,-500.0,0.00027397,7]
[331828916,1720773512367,-500.0,0.00027397,7]
[331828917,1720773512390,-500.0,0.00027397,7]
[331828918,1720773512413,-524.21912007,0.00027397,7]
[331828919,1720773512442,-500.0,0.00027397,7]
[331828920,1720773512465,-505.65230045,0.00027397,7]